fUSD/lending_fUSD_20250401
["ID","MTS","AMOUNT","RATE_DAILY","PERIOD"]
[356989770,1743535493522,-153.998603,0.00024,7]
[356989771,1743535493547,-298.320962,0.00024,7]
[356989772,1743535493570,-151.0,0.00024,7]
[356989773,1743535493593,-229.695131,0.00024,7]
[356989774,1743535493619,-151.0,0.00024,7]
[356989775,1743535493642,-151.0,0.00024,7]
[356989776,1743535493664,-198.278128,0.00024,7]
[356989777,1743535493686,-151.0,0.00024,7]
[356989778,1743535493709,-151.0,0.00024,7]
[356989779,1743535493731,-151.0,0.00024,7]
[356989780,1743535493753,-151.0,0.00024,7]
[356989781,1743535493782,-239.114763,0.00024,7]
[356989782,1743535493805,-151.0,0.00024,7]
[356989783,1743535493829,-151.0,0.00024,7]
[356989784,1743535493853,-151.0,0.00024,7]
[356989785,1743535493876,-151.0,0.00024,7]
[356989786,1743535493900,-151.0,0.00024,7]
[356989787,1743535493923,-152.865755,0.00024,7]
[356989788,1743535493947,-151.0,0.00024,7]
[356989789,1743535493971,-151.0,0.00024,7]
[356989790,1743535493993,-151.0,0.00024,7]
[356989791,1743535494018,-151.0,0.00024,7]
[356989792,1743535494041,-151.0,0.00024,7]
[356989793,1743535494064,-151.0,0.00024,7]
[356989794,1743535494088,-151.0,0.00024,7]
[356989795,1743535494110,-225.568437,0.00024,7]
[356989796,1743535494134,-260.96708,0.00024,7]
[356989797,1743535494157,-151.0,0.00024,7]
[356989798,1743535494181,-159.349638,0.00024,7]
[356989799,1743535494205,-151.0,0.00024,7]
[356989800,1743535494228,-152.880165,0.00024,7]
[356989801,1743535494253,-157.843189,0.00024,7]
[356989802,1743535494277,-154.958626,0.00024,7]
[356989803,1743535494301,-151.0,0.00024,7]
[356989804,1743535494324,-151.0,0.00024,7]
[356989805,1743535494347,-151.0,0.00024,7]
[356989806,1743535494370,-152.506509,0.00024,7]
[356989807,1743535494395,-151.0,0.00024,7]
[356989808,1743535494430,-151.0,0.00024,7]
[356989809,1743535494463,-151.0,0.000248,7]
[356989810,1743535494487,-151.0,0.000248,7]
[356989811,1743535494511,-151.0,0.000248,7]
[356989812,1743535494536,-151.0,0.000248,7]
[356989813,1743535494559,-151.0,0.000248,7]
[356989814,1743535494583,-151.0,0.000248,7]
[356989815,1743535494607,-151.0,0.000248,7]
[356989816,1743535494631,-151.0,0.000248,7]
[356989817,1743535494655,-151.0,0.000248,7]
[356989818,1743535494679,-151.0,0.000248,7]
[356989819,1743535494703,-151.0,0.000248,7]
[356989820,1743535494727,-151.0,0.000248,7]
[356989821,1743535494752,-151.0,0.000248,7]
[356989822,1743535494778,-151.0,0.000248,7]
[356989823,1743535494802,-151.0,0.000248,7]
[356989824,1743535494825,-151.0,0.000248,7]
[356989825,1743535494849,-151.0,0.000248,7]
[356989826,1743535494875,-151.0,0.000248,7]
[356989827,1743535494898,-151.0,0.000248,7]
[356989828,1743535494922,-151.0,0.000248,7]
[356989829,1743535494946,-151.0,0.000248,7]
[356989830,1743535494969,-151.0,0.000248,7]
[356989831,1743535494992,-151.0,0.000248,7]
[356989832,1743535495016,-151.0,0.000248,7]
[356989833,1743535495041,-151.0,0.000248,7]
[356989834,1743535495064,-151.0,0.000248,7]
[356989835,1743535495088,-151.0,0.000248,7]
[356989836,1743535495112,-151.0,0.000248,7]
[356989837,1743535495135,-151.0,0.000248,7]
[356989838,1743535495159,-151.0,0.000248,7]
[356989839,1743535495182,-151.0,0.000248,7]
[356989840,1743535495206,-198.257186,0.000248,7]
[356989841,1743535495229,-198.257186,0.000248,7]
[356989842,1743535495256,-151.0,0.000248,7]
[356989843,1743535495280,-1455.528664,0.000248,7]
[356989844,1743535495304,-151.0,0.000248,7]
[356989845,1743535495328,-1455.528664,0.000248,7]
[356989846,1743535495352,-151.0,0.000248,7]
[356989847,1743535495375,-151.0,0.000248,7]
[356989848,1743535495399,-151.0,0.000248,7]
[356989849,1743535495615,-151.0,0.000248,7]
[356989850,1743535495640,-151.0,0.000248,7]
[356989851,1743535495665,-151.0,0.00027397,7]
[356989852,1743535495688,-291.742043,0.00027397,7]
[356989853,1743535495711,-283.20128,0.00027488,7]
[356989854,1743535495734,-151.0,0.00027488,7]
[356989855,1743535495759,-151.0,0.00027488,7]
[356989856,1743535495785,-151.0,0.00027488,7]
[356989857,1743535495808,-151.0,0.00027488,7]
[356989858,1743535495833,-151.0,0.00027488,7]
[356989859,1743535495858,-151.0,0.00027488,7]
[356989860,1743535495882,-159.608537,0.00027488,7]
[356989861,1743535495907,-151.0,0.00027488,7]
[356989862,1743535495931,-151.0,0.00027488,7]
[356989863,1743535495955,-151.0,0.00027488,7]
[356989864,1743535495983,-198.257186,0.00027488,7]
[356989865,1743535496007,-198.257186,0.00027488,7]
[356989866,1743535496032,-1455.528664,0.00027488,7]
[356989867,1743535496056,-151.0,0.00027488,7]
[356989868,1743535496084,-1455.528664,0.00027488,7]
[356989869,1743535496108,-207.883561,0.00027488,7]
[356989870,1743535496131,-151.0,0.00027488,7]
[356989871,1743535496157,-151.0,0.00027488,7]
[356989872,1743535496181,-151.0,0.00027488,7]
[356989873,1743535496205,-151.0,0.00027488,7]
[356989874,1743535496229,-151.0,0.00028448,7]
[356989875,1743535496254,-151.0,0.00028448,7]
[356989876,1743535496277,-151.0,0.00028448,7]
[356989877,1743535553453,543.84,0.00014162,2]
[356989879,1743535614621,1000.0,0.00014162,2]
[356989880,1743535643689,158.07644563,0.00014091,2]
[356989881,1743535667640,311.86,0.00014162,2]
[356989882,1743535694383,4749.38,0.0001418,2]
[356989884,1743535694979,-203.7199045,0.0001489,2]
[356989887,1743535697288,339.92,0.00014179,3]
[356989896,1743535776267,205.68,0.0001418,2]
[356989897,1743535778499,1700.84,0.00014181,2]
[356989899,1743535826807,1195.45,0.0001418,2]
[356989903,1743535832035,-325.68644592,0.0001489,2]
[356989904,1743535832195,-150.0,0.00014893,2]
[356989905,1743535832205,-4013.2384,0.000149,2]
[356989906,1743535832215,-1000.0,0.000149,2]
[356989907,1743535832226,-888.2283,0.000149,2]
[356989908,1743535832235,-923.2912,0.000149,2]
[356989909,1743535832244,-1296.4696,0.000149,2]
[356989910,1743535832253,-3620.8171,0.000149,2]
[356989911,1743535832265,-236.3427,0.000149,2]
[356989912,1743535832275,-500.0,0.000149,2]
[356989913,1743535832285,-262.60652106,0.000149,2]
[356989914,1743535832294,-4947.5651,0.000149,2]
[356989915,1743535832303,-563.238,0.000149,2]
[356989916,1743535832312,-66270.2334,0.000149,2]
[356989917,1743535832322,-1000.0,0.000149,2]
[356989918,1743535832332,-36002.9597,0.000149,2]
[356989919,1743535832342,-2500.0,0.000149,2]
[356989920,1743535832351,-1804.69951948,0.000149,2]
[356989922,1743535832361,-500.0,0.00014973,2]
[356989923,1743535832370,-500.0,0.00014999,2]
[356989925,1743535832379,-278.24109039,0.00014999,2]
[356989927,1743535832389,-157.24734266,0.00014999,2]
[356989929,1743535832398,-629.0,0.00015,2]
[356989931,1743535832408,-1294584.54812863,0.00015,2]
[356989933,1743535832417,-464869.42109444,0.00015,2]
[356989937,1743535832445,-1502.63633473,0.00015,2]
[356989939,1743535832456,-2510.60206527,0.00015,2]
[356989986,1743535871724,4868.86,0.0001418,2]
[356989987,1743535911055,2226.3018,0.000148,2]
[356989988,1743535921592,310.36,0.0001418,2]
[356989989,1743535975692,9561.41,0.0001418,2]
[356989990,1743536016362,-151.0,0.000248,7]
[356989991,1743536016395,-259.777305,0.000248,7]
[356989992,1743536016423,-151.0,0.000248,7]
[356989993,1743536016448,-151.0,0.000248,7]
[356989994,1743536016472,-151.0,0.000248,7]
[356989995,1743536016496,-151.0,0.000248,7]
[356989996,1743536016520,-1164.422932,0.000248,7]
[356989997,1743536016544,-1164.422932,0.000248,7]
[356989998,1743536016568,-151.0,0.000248,7]
[356989999,1743536016592,-151.0,0.000248,7]
[356990000,1743536016618,-151.0,0.000275,7]
[356990001,1743536016642,-151.0,0.000275,7]
[356990002,1743536016666,-151.0,0.000275,7]
[356990003,1743536016690,-189.91258,0.000275,7]
[356990004,1743536016716,-151.0,0.00028843,7]
[356990005,1743536016741,-1164.422932,0.00028843,7]
[356990006,1743536016765,-1164.422932,0.00028843,7]
[356990007,1743536016792,-185.009446,0.00028843,7]
[356990008,1743536016817,-161.466983,0.00028843,7]
[356990009,1743536020896,237.742212,0.000248,7]
[356990010,1743536055641,150.0,0.00014601,2]
[356990011,1743536077693,150.0,0.00014601,2]
[356990012,1743536139629,1503.63,0.00012698,2]
[356990014,1743536180965,250.0,0.00014176,2]
[356990015,1743536211083,27436.07,0.00014176,2]
[356990016,1743536231620,168.06,0.00013699,2]
[356990018,1743536300568,-158.605749,0.000248,7]
[356990019,1743536300594,-158.605749,0.000248,7]
[356990020,1743536300617,-151.0,0.000248,7]
[356990021,1743536300641,-151.0,0.000248,7]
[356990022,1743536300663,-151.0,0.000248,7]
[356990023,1743536300690,-151.0,0.000248,7]
[356990024,1743536300713,-151.0,0.000248,7]
[356990025,1743536300737,-151.0,0.0002501,7]
[356990026,1743536300760,-151.0,0.0002501,7]
[356990027,1743536300784,-151.0,0.0002501,7]
[356990028,1743536300808,-151.0,0.0002501,7]
[356990029,1743536300832,-931.538345,0.0002501,7]
[356990030,1743536300861,-151.0,0.0002501,7]
[356990031,1743536300886,-931.538345,0.0002501,7]
[356990032,1743536300910,-151.0,0.0002501,7]
[356990033,1743536300934,-151.0,0.0002501,7]
[356990034,1743536300959,-151.0,0.0002501,7]
[356990035,1743536300984,-160.407234,0.0002501,7]
[356990036,1743536301009,-231.478985,0.0002501,7]
[356990037,1743536301036,-151.0,0.0002501,7]
[356990038,1743536301059,-151.0,0.0002501,7]
[356990039,1743536301087,-158.605749,0.00028843,7]
[356990040,1743536301111,-158.605749,0.00028843,7]
[356990041,1743536301135,-151.0,0.00028843,7]
[356990042,1743536301158,-151.0,0.00028843,7]
[356990043,1743536301182,-151.0,0.00028843,7]
[356990044,1743536301206,-151.0,0.00028843,7]
[356990045,1743536301229,-151.0,0.00028843,7]
[356990046,1743536312385,2873.63,0.00014165,2]
[356990048,1743536318638,348.15,0.00014165,2]
[356990049,1743536334504,200.0,0.00014165,2]
[356990050,1743536412394,300.0,0.0001418,2]
[356990051,1743536422171,351.63140247,0.00014799,2]
[356990052,1743536426735,1189.16,0.00014165,2]
[356990053,1743536477323,859.09,0.00014163,2]
[356990054,1743536479021,153.95,0.00014163,2]
[356990055,1743536479235,153.95,0.00014174,2]
[356990056,1743536479434,153.95,0.00014184,2]
[356990057,1743536479900,153.95,0.00014194,2]
[356990058,1743536480132,153.95,0.00014204,2]
[356990059,1743536480337,153.95,0.00014214,2]
[356990060,1743536480537,153.95,0.00014224,2]
[356990061,1743536480971,153.95,0.00014234,2]
[356990062,1743536510370,22614.01,0.00014163,2]
[356990063,1743536528258,247.72976683,0.00014799,2]
[356990064,1743536533239,247.72976682,0.000148,2]
[356990065,1743536552607,635.26,0.00014701,2]
[356990066,1743536566007,4123.36,0.0001418,2]
[356990067,1743536615222,-1896.08,0.00014862,2]
[356990068,1743536615257,-307.4,0.00014872,2]
[356990069,1743536615284,-2751.0,0.00014876,2]
[356990070,1743536615311,-150.0,0.00014899,2]
[356990071,1743536615338,-300.0,0.00014899,2]
[356990072,1743536615364,-500.0,0.000149,2]
[356990073,1743536615391,-15095.52,0.000149,2]
[356990074,1743536638642,495.45953365,0.000148,2]
[356990075,1743536648626,403.40468522,0.00014685,2]
[356990076,1743536696556,-5000.0,0.000149,2]
[356990077,1743536708812,2413.24,0.00014824,2]
[356990078,1743536773463,-150.0,0.00015172,7]
[356990079,1743536773515,-284.309391,0.000248,7]
[356990080,1743536773545,-151.0,0.000248,7]
[356990081,1743536773573,-254.946531,0.000248,7]
[356990082,1743536773602,-151.0,0.000248,7]
[356990083,1743536773630,-151.0,0.000248,7]
[356990084,1743536773655,-151.0,0.000248,7]
[356990085,1743536773678,-205.440059,0.000248,7]
[356990086,1743536773701,-151.0,0.000248,7]
[356990087,1743536773953,-151.0,0.000248,7]
[356990088,1743536773983,-151.0,0.000248,7]
[356990089,1743536774007,-151.0,0.000248,7]
[356990090,1743536774033,-151.0,0.000248,7]
[356990091,1743536774058,-838.384511,0.000248,7]
[356990092,1743536774084,-838.384511,0.000248,7]
[356990093,1743536774110,-151.0,0.000248,7]
[356990094,1743536774134,-151.0,0.000248,7]
[356990095,1743536774158,-151.0,0.000248,7]
[356990096,1743536774185,-151.0,0.0002501,7]
[356990097,1743536774209,-151.0,0.0002501,7]
[356990098,1743536774233,-230.498579,0.0002501,7]
[356990099,1743536774258,-985.774,0.00028052,18]
[356990100,1743536774287,-185.023201,0.00028843,7]
[356990101,1743536774311,-151.0,0.00028843,7]
[356990102,1743536774334,-151.0,0.00028843,7]
[356990103,1743536774361,-151.0,0.00028843,7]
[356990104,1743536774385,-151.0,0.00028843,7]
[356990105,1743536774408,-151.0,0.0002898,7]
[356990106,1743536815624,200.0,0.00014824,2]
[356990107,1743536956092,182.13,0.0001485,2]
[356990109,1743537029800,-151.0,0.000248,7]
[356990110,1743537029823,-261.180322,0.000248,7]
[356990111,1743537029847,-151.0,0.000248,7]
[356990112,1743537029871,-754.54606,0.000248,7]
[356990113,1743537029895,-754.54606,0.000248,7]
[356990114,1743537029918,-151.0,0.000248,7]
[356990115,1743537029941,-151.0,0.000248,7]
[356990116,1743537029964,-151.0,0.000248,7]
[356990117,1743537029987,-155.218622,0.000249,7]
[356990118,1743537030011,-151.0,0.000249,7]
[356990119,1743537030035,-151.0,0.000249,7]
[356990120,1743537030060,-151.0,0.000249,7]
[356990124,1743537032072,-150.0,0.00014899,2]
[356990125,1743537032082,-150.0,0.000149,2]
[356990126,1743537032092,-6964.39825931,0.000149,2]
[356990127,1743537032104,-624.42366191,0.000149,2]
[356990128,1743537032339,-1082.63992284,0.000149,2]
[356990129,1743537032353,-507.03837421,0.000149,2]
[356990138,1743537032519,-8014.63461006,0.000149,2]
[356990159,1743537037976,-2919.25128921,0.000149,2]
[356990160,1743537037989,-832.38144,0.000149,2]
[356990161,1743537038136,-4197.49999999,0.000149,2]
[356990219,1743537040388,-221.61135053,0.00014899,2]
[356990220,1743537040398,-121.64853142,0.000149,2]
[356990221,1743537040492,-254.62065,0.000149,2]
[356990222,1743537040599,-2889.40548693,0.000149,2]
[356990223,1743537040712,-5216.55106365,0.000149,2]
[356990233,1743537043169,-4762.15460413,0.000149,2]
[356990234,1743537043276,-2169.879516,0.000149,2]
[356990235,1743537043327,-625.90386645,0.000149,2]
[356990237,1743537044922,-1880.22562389,0.000149,2]
[356990238,1743537044932,-1000.0,0.000149,2]
[356990239,1743537044942,-225.09130374,0.000149,2]
[356990240,1743537044952,-500.0,0.000149,2]
[356990241,1743537044962,-2500.0,0.000149,2]
[356990242,1743537044972,-2427.43999265,0.000149,2]
[356990243,1743537044981,-361.5329,0.000149,2]
[356990244,1743537044991,-2427.43999257,0.00014903,2]
[356990245,1743537045001,-2427.43999257,0.00014906,2]
[356990246,1743537045011,-2427.43999257,0.00014908,2]
[356990247,1743537045021,-2427.43999257,0.00014911,2]
[356990248,1743537045031,-2427.43999257,0.00014914,2]
[356990249,1743537045040,-2427.43999257,0.00014917,2]
[356990250,1743537045052,-2427.43999257,0.00014919,2]
[356990251,1743537045062,-2427.43999257,0.00014922,2]
[356990252,1743537045072,-2427.43999257,0.00014925,2]
[356990253,1743537045082,-479.68938371,0.00014962,2]
[356990270,1743537046204,-1023.94061629,0.00014962,2]
[356990271,1743537046214,-500.0,0.00014992,2]
[356990272,1743537046224,-563.0,0.00015,2]
[356990273,1743537046234,-49761.20233158,0.00015,2]
[356990277,1743537046781,-52009.05617334,0.00015,2]
[356990279,1743537259580,1353.26,0.00013333,2]
[356990280,1743537363311,168.06,0.00013699,2]
[356990282,1743537604095,4901.32,0.00014777,2]
[356990283,1743537622262,435.07,0.00014837,2]
[356990284,1743537685826,200.0,0.00014039,2]
[356990285,1743537777700,948.04,0.00014039,2]
[356990286,1743537781678,34957.14,0.00014151,2]
[356990287,1743537792587,529.67,0.00014044,2]
[356990288,1743537841756,200.0,0.00014035,2]
[356990289,1743537924037,150.0,0.00014035,7]
[356990290,1743537941946,887.43,0.0001403,2]
[356990291,1743538101363,-190.45,0.00014862,2]
[356990292,1743538101391,-1659.25146146,0.0001489,2]
[356990293,1743538101419,-200.0,0.00014892,2]
[356990294,1743538101447,-6924.57492845,0.00014892,2]
[356990295,1743538101499,-6681.18880984,0.00014892,2]
[356990296,1743538181475,1000.0,0.00014031,2]
[356990315,1743538232133,-1091.08148186,0.00014892,2]
[356990321,1743538232186,-5358.28634486,0.00014892,2]
[356990322,1743538232198,-1771.45420964,0.00014892,2]
[356990323,1743538232209,-866.6658,0.00014892,2]
[356990325,1743538232239,-1206.74842535,0.00014892,2]
[356990327,1743538232249,-671.578,0.000149,2]
[356990329,1743538232259,-8973.63955021,0.000149,2]
[356990331,1743538232270,-662.02854974,0.000149,2]
[356990334,1743538232293,-6360.65215151,0.000149,2]
[356990336,1743538232305,-19991.91404854,0.000149,2]
[356990338,1743538232315,-500.0,0.000149,2]
[356990340,1743538232325,-182.0569,0.000149,2]
[356990343,1743538232485,-1297.1798,0.000149,2]
[356990344,1743538232495,-1005.9127,0.000149,2]
[356990345,1743538232505,-15081.3734,0.000149,2]
[356990346,1743538232514,-519.7817,0.000149,2]
[356990347,1743538232523,-465.2921,0.000149,2]
[356990348,1743538232532,-7020.5807,0.000149,2]
[356990349,1743538232543,-493.142,0.000149,2]
[356990350,1743538232552,-192.93540318,0.000149,2]
[356990351,1743538232561,-1000.0,0.000149,2]
[356990352,1743538232571,-310.29163069,0.000149,2]
[356990355,1743538232586,-1075.68508051,0.000149,2]
[356990358,1743538232602,-1114.0232888,0.000149,2]
[356990359,1743538232612,-181.48440518,0.000149,2]
[356990360,1743538232622,-165.13047316,0.000149,2]
[356990361,1743538232631,-157.82605798,0.000149,2]
[356990362,1743538232641,-494.81863803,0.000149,2]
[356990363,1743538232657,-257.9999999,0.000149,2]
[356990364,1743538232672,-4680.84315839,0.000149,2]
[356990365,1743538232682,-161.28,0.00014912,2]
[356990366,1743538232692,-294.99,0.00014919,2]
[356990367,1743538232703,-650.17,0.00014922,2]
[356990368,1743538232713,-1187.16,0.00014928,2]
[356990369,1743538232722,-999.99,0.00014928,2]
[356990370,1743538232732,-5858.17350228,0.00014928,2]
[356990371,1743538232744,-4141.81649772,0.00014928,2]
[356990372,1743538232754,-250.0,0.00014969,2]
[356990373,1743538232763,-2153.97707132,0.00014969,2]
[356990374,1743538232775,-6684.36292868,0.00014969,2]
[356990375,1743538232784,-150.99,0.00014969,2]
[356990376,1743538232795,-499.99,0.00014969,2]
[356990377,1743538232805,-1816.48015039,0.0001499,2]
[356990378,1743538232820,-2448.42870451,0.0001499,2]
[356990379,1743538232831,-757.8900005,0.0001499,2]
[356990380,1743538232844,-774.34181465,0.0001499,2]
[356990385,1743538238148,-4400.0,0.0001499,2]
[356990386,1743538238160,-1771.25319966,0.0001499,2]
[356990387,1743538238201,-748.8159505,0.0001499,2]
[356990388,1743538238256,-424.072634,0.0001499,2]
[356990389,1743538238310,-8746.35016993,0.0001499,2]
[356990390,1743538238364,-534.07751956,0.0001499,2]
[356990391,1743538238375,-2142.0898563,0.0001499,2]
[356990392,1743538238385,-172.23995381,0.0001499,2]
[356990393,1743538238397,-46.90188069,0.0001499,2]
[356990394,1743538238406,-194.76876328,0.00014999,2]
[356990395,1743538238416,-506.0,0.00015,2]
[356990396,1743538238425,-18624.82935603,0.00015,2]
[356990397,1743538238471,-2587.42803,0.00015,2]
[356990398,1743538238483,-4442.40000004,0.00015,2]
[356990399,1743538238495,-428.59662101,0.00015,2]
[356990400,1743538238525,-43599.99981712,0.00015,2]
[356990444,1743538240309,-288606.59080698,0.00015,2]
[356990445,1743538240364,-2360.09036268,0.00015,2]
[356990446,1743538240576,-542602.96587508,0.00015,2]
[356990447,1743538240586,-2554711.81116518,0.00015,2]
[356990448,1743538240597,-1157.65390319,0.00015,2]
[356990456,1743538243470,-66657.64910273,0.00015,2]
[356990457,1743538243482,-25186.3396482,0.00015,2]
[356990458,1743538243523,-475.4551127,0.00015,2]
[356990459,1743538243583,-225.36595579,0.000149,2]
[356990460,1743538243593,-136969.22750956,0.00015,2]
[356990461,1743538243605,-3734.89111475,0.00015,2]
[356990462,1743538243634,-414095.2710897,0.00015,2]
[356990466,1743538245243,-10025.0000001,0.00015,2]
[356990467,1743538245257,-11024.22302619,0.00015,2]
[356990468,1743538246158,-806.93964744,0.00015,2]
[356990469,1743538246170,-9236.49741695,0.00015,2]
[356990470,1743538246264,-1988.73463254,0.00015,2]
[356990471,1743538246423,-402151.56828224,0.00015,2]
[356990472,1743538246433,-568712.65095686,0.00015,2]
[356990473,1743538246445,-498852.22233051,0.00015,2]
[356990486,1743538249655,151.34,0.00014031,2]
[356990487,1743538259359,1285.59,0.00013295,2]
[356990488,1743538301754,160.24,0.00014031,2]
[356990489,1743538358712,150.0,0.00014031,2]
[356990490,1743538372060,3638.75,0.00014059,2]
[356990491,1743538403521,4569.81,0.00014171,2]
[356990492,1743538463499,3614.2,0.00014059,2]
[356990493,1743538556582,500.0,0.00014059,2]
[356990494,1743538564004,166.66,0.0001448,2]
[356990495,1743538592695,306.37,0.00014059,2]
[356990496,1743538592931,306.37,0.00014062,2]
[356990497,1743538593144,306.37,0.00014066,2]
[356990498,1743538593373,306.37,0.0001407,2]
[356990499,1743538593581,306.37,0.00014073,2]
[356990500,1743538593769,306.37,0.00014077,2]
[356990501,1743538593959,306.37,0.00014081,2]
[356990502,1743538594426,306.37,0.00014084,2]
[356990503,1743538594640,306.37,0.00014088,2]
[356990504,1743538595060,306.37,0.00014092,2]
[356990505,1743538595346,306.37,0.00014096,2]
[356990506,1743538595554,306.37,0.00014099,2]
[356990507,1743538595888,306.37,0.00014103,2]
[356990508,1743538596093,306.37,0.00014107,2]
[356990509,1743538596312,306.37,0.0001411,2]
[356990510,1743538596517,306.37,0.00014114,2]
[356990511,1743538596715,306.37,0.00014118,2]
[356990512,1743538596948,306.37,0.00014121,2]
[356990513,1743538597158,306.37,0.00014125,2]
[356990514,1743538597387,306.37,0.00014129,2]
[356990515,1743538605428,184.07,0.00014604,2]
[356990516,1743538622067,24942.62663147,0.0001485,2]
[356990517,1743538657767,200.0,0.00014059,2]
[356990518,1743538658737,250.0,0.00014056,2]
[356990519,1743538675423,3580.18,0.00014056,2]
[356990520,1743538685547,224.33,0.0001408,2]
[356990521,1743538709646,29614.56,0.00014059,2]
[356990522,1743538757641,711.85,0.00014056,2]
[356990523,1743538793928,2519.51,0.00014056,2]
[356990524,1743538810240,1765.9,0.00014059,2]
[356990525,1743539012907,500.0,0.00014059,2]
[356990526,1743539150777,150.0,0.00014059,7]
[356990529,1743539190457,214.46,0.00014059,2]
[356990531,1743539224450,198.64,0.00014059,2]
[356990532,1743539261819,621.3,0.00014059,2]
[356990533,1743539282621,23900.0,0.00014079,2]
[356990534,1743539318020,6664.5886,0.00014814,2]
[356990536,1743539340662,1377.49,0.00012141,2]
[356990537,1743539340848,1377.49,0.00014405,2]
[356990543,1743539369600,1000.0,0.00014059,2]
[356990548,1743539392325,150.0,0.00014059,2]
[356990561,1743539432324,-266.775,0.0001489,2]
[356990562,1743539432333,-150.0,0.00014894,2]
[356990563,1743539432342,-1568.1875,0.00014899,2]
[356990564,1743539432351,-490.16420856,0.00014899,2]
[356990565,1743539432360,-1693.7387,0.00014899,2]
[356990567,1743539432369,-459.2535699,0.00014899,2]
[356990569,1743539432377,-150.0,0.00014899,2]
[356990571,1743539432386,-1087.47165842,0.000149,2]
[356990573,1743539432398,-4407.26800177,0.000149,2]
[356990575,1743539432409,-809.87798182,0.000149,2]
[356990577,1743539432420,-1342.65515962,0.000149,2]
[356990587,1743539432495,-1498.37856869,0.000149,2]
[356990589,1743539432505,-25539.97212968,0.000149,2]
[356990591,1743539432514,-1124.9986,0.000149,2]
[356990593,1743539432523,-28295.9543,0.000149,2]
[356990594,1743539432532,-500.0,0.000149,2]
[356990595,1743539432541,-534.7088,0.000149,2]
[356990596,1743539432549,-1000.0,0.000149,2]
[356990597,1743539432558,-1199.3049,0.000149,2]
[356990598,1743539432567,-3026.1158,0.000149,2]
[356990599,1743539432576,-1000.0,0.000149,2]
[356990600,1743539432585,-1112.8254158,0.000149,2]
[356990601,1743539432597,-840.0,0.000149,2]
[356990602,1743539432609,-327.29223242,0.000149,2]
[356990603,1743539432620,-219.88235178,0.000149,2]
[356990604,1743539432629,-100.40806086,0.000149,2]
[356990605,1743539432640,-105.63367524,0.000149,2]
[356990606,1743539432649,-263.0975609,0.00014928,2]
[356990607,1743539432660,-130.48089204,0.00014928,2]
[356990608,1743539432672,-81.250914,0.00014928,2]
[356990609,1743539432681,-500.0,0.00014973,2]
[356990610,1743539432691,-500.0,0.00014973,2]
[356990611,1743539432700,-500.90196486,0.00014973,2]
[356990612,1743539432710,-169.56705614,0.0001499,2]
[356990613,1743539432719,-283.21,0.00014998,2]
[356990614,1743539432728,-9999.99,0.00014999,2]